bitfinex-derivatives/quotes_ETHF0:USTF0_20210405
["timestamp","ask_amount","ask_price","bid_price","bid_amount"]
[1617610998445,2.90695,2015.3,2015.2,8.07820086]
[1617610999547,58.2038,2015.7,2015.2,8.07820086]
[1617610999748,14.0571,2016.4,2015.2,10.52460086]
[1617610999949,14.0571,2016.4,2015.7,77.3751]
[1617611000151,14.0571,2016.4,2015.7,79.1012]
[1617611000347,14.0571,2016.4,2016.0,2.90695]
[1617611002352,2.90695,2016.1,2016.0,2.90695]
[1617611002950,2.90695,2016.1,2015.7,5.17591949]
[1617611003150,67.3764,2015.9,2015.7,5.17591949]
[1617611003549,67.3764,2015.9,2015.6,5.17622968]
[1617611003949,67.3764,2015.9,2015.5,5.17192528]
[1617611004451,2.90695,2015.6,2015.5,5.17192528]
[1617611005152,2.90695,2015.6,2015.4,5.17208876]
[1617611005352,2.90695,2015.6,2015.5,73.8933]
[1617611007054,2.90695,2015.6,2015.4,5.17208876]
[1617611007255,5.45265,2015.6,2015.4,5.17208876]
[1617611007456,56.5812,2015.5,2015.4,5.17208876]
[1617611007655,56.5812,2015.5,2015.3,5.17209573]
[1617611009358,5.45265,2015.6,2015.3,5.17209573]
[1617611009557,5.45265,2015.6,2015.4,5.17213848]
[1617611009856,5.45265,2015.6,2015.3,78.14605668]
[1617611011259,5.45265,2015.6,2015.5,5.17730945]
[1617611013959,5.45265,2015.6,2015.5,76.67050945]
[1617611014161,5.45265,2015.6,2015.5,71.6731428]
[1617611015861,2.90695,2015.6,2015.5,0.1799428]
[1617611016061,76.74595,2015.6,2015.5,0.1799428]
[1617611016461,76.74595,2015.6,2015.5,3.0868928]
[1617611018063,2.90695,2015.6,2015.5,3.0868928]
[1617611018263,2.90695,2015.6,2015.5,82.4166928]
[1617611018464,2.90695,2015.6,2015.5,88.74336336]
[1617611020164,2.90695,2015.6,2015.5,82.4166928]
[1617611024968,2.90695,2015.6,2015.5,3.0868928]
[1617611025167,67.05295,2015.6,2015.5,3.0868928]
[1617611025868,67.05295,2015.6,2015.5,0.1799428]
[1617611026268,67.05295,2015.6,2015.3,0.18060993]
[1617611026469,67.05295,2015.6,2015.5,6.33412087]
[1617611026872,67.05295,2015.6,2015.5,0.18066099]
[1617611032875,67.05295,2015.6,2015.4,7.68508115]
[1617611033173,67.05295,2015.6,2015.4,7.50436574]
[1617611033574,67.05295,2015.6,2015.5,0.18072573]
[1617611034174,2.90695,2015.6,2015.4,7.6850556]
[1617611034475,2.90695,2015.6,2015.5,76.59739923]
[1617611034676,2.90695,2015.6,2015.5,79.50434923]
[1617611035074,2.90695,2015.6,2015.5,87.00830606]
[1617611035773,3.90425,2015.6,2015.5,87.00830606]
[1617611035975,2.90695,2015.6,2015.5,87.00830606]
[1617611038178,2.90695,2015.6,2015.5,79.50434923]
[1617611039380,61.7257,2016.2,2015.5,81.58464923]
[1617611039581,14.0571,2016.4,2015.5,5.16794923]
[1617611039780,32.0,2017.7,2015.5,5.16794923]
[1617611039981,101.884,2017.7,2016.4,74.2614]
[1617611040183,101.884,2017.7,2016.4,76.017]
[1617611040380,101.884,2017.7,2016.6,5.19564555]
[1617611040580,101.884,2017.7,2016.7,2.90695]
[1617611041084,101.884,2017.7,2016.7,5.19509466]
[1617611041383,32.0,2017.7,2016.7,5.19509466]
[1617611041583,30.9926,2017.6,2016.7,5.19509466]
[1617611041783,78.5194,2017.2,2016.6,5.1951475]
[1617611041982,2.0,2017.1,2016.6,4.7962475]
[1617611042182,2.0,2017.1,2016.6,4.3592475]
[1617611042382,2.0,2017.1,2016.7,50.0]
[1617611042782,2.90695,2016.8,2016.7,50.0]
[1617611042983,3.88455,2016.8,2016.7,50.0]
[1617611043184,3.88455,2016.8,2016.7,49.1256]
[1617611043587,60.54615,2016.8,2016.7,49.1256]
[1617611043783,60.54615,2016.8,2016.7,48.6884]
[1617611044285,60.54615,2016.8,2016.7,48.2512]
[1617611044984,62.54615,2016.8,2016.7,47.814]
[1617611046389,62.54615,2016.8,2016.7,47.3766]
[1617611047191,62.54615,2016.8,2016.7,46.2566]
[1617611047391,62.54615,2016.8,2016.7,45.8198]
[1617611047690,62.54615,2016.8,2016.7,45.4176]
[1617611047890,62.54615,2016.8,2016.7,44.0996]
[1617611048490,62.54615,2016.8,2016.7,43.6622]
[1617611049190,92.54615,2016.8,2016.7,42.2314]
[1617611049390,92.54615,2016.8,2016.7,41.2364]
[1617611049591,92.54615,2016.8,2016.7,40.7995]
[1617611050089,92.54615,2016.8,2016.7,40.3626]
[1617611050291,92.54615,2016.8,2016.7,28.1737]
[1617611050490,92.54615,2016.8,2016.7,26.0198]
[1617611050690,92.54615,2016.8,2016.7,18.3918]
[1617611050891,92.54615,2016.8,2016.7,17.4018]
[1617611051491,92.54615,2016.8,2016.7,16.4734]
[1617611051692,92.54615,2016.8,2016.7,16.0365]
[1617611052091,35.88455,2016.8,2016.7,14.5492]
[1617611052291,35.88455,2016.8,2016.7,14.1348]
[1617611052691,35.88455,2016.8,2016.7,13.4887]
[1617611053092,35.88455,2016.8,2016.7,13.122]
[1617611053293,35.88455,2016.8,2016.7,12.1394]
[1617611053594,35.88455,2016.8,2016.7,11.8317]
[1617611053796,35.88455,2016.8,2016.7,10.4352]
[1617611054595,35.88455,2016.8,2016.7,9.9639]
[1617611055796,35.88455,2016.8,2016.7,9.7537]
[1617611056797,35.88455,2016.8,2016.7,9.3417]
[1617611056998,35.88455,2016.8,2016.7,8.5955]
[1617611058201,32.9776,2016.8,2016.7,8.5955]
[1617611058700,32.9776,2016.8,2016.7,7.3561]
[1617611059101,35.88455,2016.8,2016.5,5.21548156]
[1617611059299,35.88455,2016.8,2016.5,4.27968156]
[1617611059300,60.2978,2016.7,2016.5,4.27968156]
[1617611059500,32.0,2016.6,2016.5,4.20208156]
[1617611059700,34.0322,2016.6,2016.5,2.44848156]
[1617611059900,34.0322,2016.6,2016.1,6.37408448]
[1617611061201,2.90695,2016.2,2016.1,6.37408448]
[1617611061404,35.90465,2016.2,2016.1,6.37408448]
[1617611064114,35.90465,2016.2,2016.0,6.37410431]
[1617611064402,35.90465,2016.2,2016.1,6.37410691]
[1617611064902,35.90465,2016.2,2016.0,5.93724696]
[1617611065702,35.90465,2016.2,2016.0,3.52544696]
[1617611065902,35.90465,2016.2,2016.0,3.08854696]
[1617611066606,35.90465,2016.2,2015.9,7.54470486]
[1617611066805,35.90465,2016.2,2015.9,7.38600486]
[1617611067804,35.90465,2016.2,2015.9,7.13910486]
[1617611068103,35.90465,2016.2,2015.2,8.69654974]
[1617611068503,68.1715,2015.3,2015.1,7.70018075]
[1617611068704,101.1529,2015.3,2015.1,7.70018075]
[1617611068905,34.9948,2015.3,2014.6,9.85708091]
[1617611069105,82.2754,2014.7,2014.6,9.85708091]
[1617611069304,86.0482,2014.7,2014.4,9.85733758]
[1617611069704,86.0482,2014.7,2014.3,9.85666764]
[1617611070104,86.0482,2014.7,2014.2,10.85792634]
[1617611070304,86.0482,2014.7,2014.2,10.79512634]
[1617611070509,86.0482,2014.7,2014.2,0.9372]
[1617611071106,2.90695,2014.3,2014.2,0.9372]
[1617611074410,2.90695,2014.3,2014.2,1.11407266]
[1617611079013,2.90695,2014.3,2014.2,0.9372]
[1617611081915,2.90695,2014.3,2014.2,7.29072174]
[1617611083922,2.90695,2014.3,2014.2,0.9372]
[1617611084122,67.13595,2014.3,2014.2,0.9372]
[1617611085520,67.13595,2014.3,2014.2,7.28996381]
[1617611086521,67.13595,2014.3,2014.2,0.9372]
[1617611086920,67.13595,2014.3,2014.2,6.13489657]
[1617611088319,2.90695,2014.3,2014.2,6.13489657]
[1617611088721,2.90695,2014.3,2014.2,0.9372]
[1617611090923,72.27175,2014.3,2013.4,2.90695]
[1617611091324,2.90695,2013.5,2013.4,2.90695]
[1617611092727,69.3648,2014.3,2013.4,2.90695]
[1617611092927,69.3648,2014.3,2013.4,4.86605]
[1617611093327,69.3648,2014.3,2014.2,2.90695]
[1617611093532,0.9937,2014.7,2014.2,5.15015]
[1617611095335,2.90695,2014.3,2014.2,5.15015]
[1617611097034,69.8728,2015.1,2014.2,5.15015]
[1617611097234,13.8096,2016.0,2014.2,5.15015]
[1617611097235,13.8096,2016.0,2014.3,2.0]
[1617611097435,68.8796,2015.9,2015.0,2.90695]
[1617611097637,68.8796,2015.9,2015.0,4.62155]
[1617611097837,30.0,2016.5,2015.0,4.62155]
[1617611098036,30.0,2016.5,2015.4,79.5755]
[1617611098437,2.0,2016.4,2015.4,79.5755]
[1617611098839,32.0,2016.4,2015.4,79.5755]
[1617611099437,2.90695,2015.5,2015.4,79.5755]
[1617611099939,2.90695,2015.5,2015.3,2.90695]
[1617611101342,30.9776,2016.8,2015.3,2.90695]
[1617611101541,62.1916,2016.8,2015.5,69.6513]
[1617611101742,62.1916,2016.8,2015.5,71.9777]
[1617611102542,2.9776,2016.8,2015.5,2.3264]
[1617611102742,76.1489,2016.2,2015.5,2.3264]
[1617611102941,77.1541,2016.2,2015.5,2.3264]
[1617611103442,77.1541,2016.2,2015.6,2.90695]
[1617611105543,2.90695,2015.7,2015.6,2.90695]
[1617611105944,2.90695,2015.7,2014.9,2.0]
[1617611106344,69.2778,2015.6,2014.9,2.0]
[1617611107451,2.90695,2015.0,2014.9,4.90695]
[1617611108447,2.90695,2015.0,2014.9,2.0]
[1617611108646,5.32435,2015.0,2014.8,2.0]
[1617611109450,5.32435,2015.0,2014.9,2.90695]
[1617611109650,2.90695,2015.0,2014.9,2.90695]
[1617611112458,2.90695,2015.0,2014.4,5.18319049]
[1617611112655,4.96745,2015.0,2014.3,5.18329861]
[1617611113255,75.927,2014.9,2014.3,5.18329861]
[1617611113457,2.90695,2014.5,2014.4,2.90695]
[1617611113656,2.90695,2014.5,2014.4,81.13465]
[1617611113854,1.7807,2015.5,2014.4,81.13465]
[1617611114055,81.9866,2015.7,2014.4,81.13465]
[1617611114256,81.9866,2015.7,2014.4,86.3191372]
[1617611114957,2.0,2015.7,2014.4,2.90695]
[1617611115156,72.793,2015.1,2014.4,2.90695]
[1617611115458,2.90695,2014.5,2014.2,5.18486184]
[1617611115656,4.98395,2014.5,2014.1,8.09190934]
[1617611116458,4.98395,2014.5,2014.1,2.90695]
[1617611117458,4.98395,2014.5,2014.1,8.09072223]
[1617611117657,2.90695,2014.2,2014.1,8.09072223]
[1617611117858,2.90695,2014.2,2014.0,5.18381866]
[1617611118660,81.72985,2014.2,2013.8,5.18426144]
[1617611119359,81.72985,2014.2,2013.6,6.33631954]
[1617611119360,81.72985,2014.2,2013.7,5.18496671]
[1617611119560,2.90695,2013.8,2013.7,5.18496671]
[1617611119759,2.90695,2013.8,2013.4,2.90695]
[1617611119760,5.39755,2013.8,2013.6,5.18498269]
[1617611122160,5.39755,2013.8,2013.7,5.18498915]
[1617611122360,2.90695,2013.8,2013.7,5.18498915]
[1617611125668,2.90695,2013.8,2013.6,5.18261135]
[1617611125867,4.95065,2013.8,2013.6,5.18261135]
[1617611126067,5.93315,2013.8,2013.6,5.18261135]
[1617611126268,4.95065,2013.8,2013.6,5.18261135]
[1617611126870,4.95065,2013.8,2013.5,5.18288266]
[1617611127068,72.78475,2013.8,2013.5,5.18288266]
[1617611130271,72.78475,2013.8,2013.4,8.09105604]
[1617611130673,72.78475,2013.8,2013.5,5.18411009]
[1617611130874,4.95065,2013.8,2013.5,5.18411009]
[1617611131072,80.9551,2013.5,2013.4,5.18448243]
[1617611131473,80.9551,2013.5,2013.0,2.96508479]
[1617611131877,2.90695,2013.1,2012.6,6.33821787]
[1617611132075,5.15865,2013.1,2012.6,6.33821787]
[1617611132276,81.0845,2012.6,2012.5,9.24533372]
[1617611132475,83.0129,2012.6,2012.5,6.33838372]
[1617611132674,83.0129,2012.6,2012.5,2.22228372]
[1617611133074,83.0129,2012.6,2012.5,2.39922105]
[1617611133274,83.0129,2012.6,2012.5,0.17693733]
[1617611133474,83.0129,2012.6,2012.2,0.17697117]
[1617611133875,2.90695,2012.3,2012.1,0.17698195]
[1617611134277,2.90695,2012.3,2011.9,10.39807234]
[1617611134481,2.90695,2012.3,2012.2,0.17688298]
[1617611134876,2.90695,2012.3,2012.0,7.66693736]
[1617611135076,2.90695,2012.3,2012.0,0.17697447]
[1617611135276,2.90695,2012.3,2011.9,10.39825236]
[1617611135479,2.90695,2012.3,2011.9,2.90695]
[1617611135877,2.90695,2012.3,2012.2,2.90695]
[1617611136878,2.90695,2012.3,2011.3,2.0]
[1617611137081,5.17805,2012.3,2011.3,2.0]
[1617611137879,2.2711,2012.3,2011.9,2.90695]
[1617611138080,3.2333,2013.1,2011.9,2.90695]
[1617611138280,2.2517,2013.1,2011.9,4.90695]
[1617611138481,78.7368,2013.5,2011.9,72.43515]
[1617611138680,78.7368,2013.5,2011.9,74.95435]
[1617611139891,78.7368,2013.5,2013.3,2.90695]
[1617611140082,13.881,2014.4,2013.3,4.86145]
[1617611140283,58.4684,2014.1,2013.3,4.86145]
[1617611141683,58.4684,2014.1,2013.3,2.90695]
[1617611141886,2.90695,2013.4,2013.3,2.90695]
[1617611145184,72.94495,2013.4,2013.3,2.90695]
[1617611147490,72.94495,2013.4,2012.2,2.0]
[1617611147688,72.94495,2013.4,2012.2,7.17898216]
[1617611147890,70.038,2013.4,2013.1,2.90695]
[1617611149492,70.038,2013.4,2013.1,4.74585]
[1617611149895,2.90695,2013.2,2013.1,4.74585]
[1617611151197,2.90695,2013.2,2013.1,2.90695]
[1617611152000,5.26275,2013.2,2012.0,2.0]
[1617611153899,2.3558,2013.2,2012.6,2.90695]
[1617611154999,2.3558,2013.2,2011.8,2.0]
[1617611155000,56.3625,2012.6,2011.8,2.0]
[1617611155201,59.1562,2012.6,2011.8,2.0]
[1617611156002,2.90695,2011.9,2011.8,4.90695]
[1617611156200,5.14285,2011.9,2011.8,4.90695]
[1617611159702,5.14285,2011.9,2011.8,2.0]
[1617611159902,75.9254,2011.8,2011.5,2.90695]
[1617611161303,5.14285,2011.9,2011.5,2.90695]
[1617611162005,2.90695,2011.6,2011.5,2.90695]
[1617611164910,71.8101,2012.2,2011.5,2.90695]
[1617611165109,71.8101,2012.2,2011.5,7.20525]
[1617611165310,71.8101,2012.2,2011.5,12.38273994]
[1617611165710,71.8101,2012.2,2011.6,5.17732819]
[1617611165910,2.90695,2012.9,2012.1,2.90695]
[1617611166112,2.90695,2012.9,2012.3,69.9249]
[1617611166311,2.90695,2012.9,2012.4,2.0]
[1617611166511,0.9787,2013.9,2012.4,2.0]
[1617611168015,0.9787,2013.9,2013.2,2.90695]
[1617611168221,0.9787,2013.9,2013.2,5.04415]
[1617611169114,70.6693,2014.4,2013.2,5.04415]
[1617611170014,2.0,2014.6,2013.7,2.90695]
[1617611170216,2.0,2014.6,2013.7,5.63325]
[1617611170416,79.3183,2015.0,2013.7,5.63325]
[1617611170615,65.9023,2015.0,2013.7,5.63325]
[1617611172017,65.9023,2015.0,2014.0,2.90695]
[1617611172217,95.9023,2015.0,2014.0,2.90695]
[1617611172415,95.9023,2015.0,2013.4,56.1208]
[1617611172616,95.9023,2015.0,2012.7,9.89046245]
[1617611172617,34.6732,2015.0,2012.7,7.2904]
[1617611172817,71.0479,2014.4,2012.7,7.2904]
[1617611173019,74.6431,2014.4,2012.7,7.2904]
[1617611173223,76.6431,2014.4,2012.8,5.17150767]
[1617611173420,76.6431,2014.4,2012.8,7.17150767]
[1617611174021,76.6431,2014.4,2012.8,2.0]
[1617611174220,76.6431,2014.4,2013.3,2.90695]
[1617611174820,74.6431,2014.4,2013.3,2.90695]
[1617611176221,2.90695,2013.4,2013.3,2.90695]
[1617611176423,73.6521,2014.4,2013.3,2.90695]
[1617611176625,71.0479,2014.4,2013.3,4.87205]
[1617611177425,72.0303,2014.4,2013.3,4.87205]
[1617611177825,71.0479,2014.4,2013.3,4.87205]
[1617611178226,2.0,2015.2,2013.9,2.90695]
[1617611178426,60.1192,2014.8,2013.9,5.16545]
[1617611179527,2.0,2015.2,2013.9,2.2585]
[1617611179528,32.0,2015.2,2013.9,2.2585]
[1617611179728,82.6498,2013.9,2013.2,5.17564093]
[1617611179929,86.2427,2013.9,2013.2,5.17564093]
[1617611180127,2.90695,2013.3,2012.9,8.07805648]
[1617611180327,4.65035,2013.3,2012.9,8.07805648]
[1617611180527,4.65035,2013.3,2012.9,2.90695]
[1617611180728,5.65005,2013.3,2012.7,7.74233673]
[1617611181127,56.2546,2013.1,2012.7,7.74233673]
[1617611181331,56.2546,2013.1,2012.7,2.571]
[1617611181730,56.2546,2013.1,2012.1,5.17243162]
[1617611182132,56.2546,2013.1,2012.2,0.17768036]
[1617611183130,56.2546,2013.1,2011.9,2.90695]
[1617611183131,56.2546,2013.1,2012.1,0.17778117]
[1617611183530,56.2546,2013.1,2012.1,40.17778117]
[1617611183730,56.2546,2013.1,2012.1,40.0]
[1617611184134,2.90695,2012.2,2012.1,40.0]
[1617611184332,4.63245,2012.2,2012.1,40.0]
[1617611184734,4.63245,2012.2,2012.1,40.1782516]
[1617611186133,75.23945,2012.2,2012.1,40.1782516]
[1617611186933,75.23945,2012.2,2012.1,40.0]
[1617611187134,4.63245,2012.2,2012.1,40.0]
[1617611188934,4.63245,2012.2,2012.1,39.0319]
[1617611190035,2.90695,2012.2,2012.1,39.0319]
[1617611190435,2.90695,2012.2,2012.1,106.6807]
[1617611191336,2.90695,2012.2,2012.1,106.85899947]
[1617611191535,2.90695,2012.2,2012.1,39.21019947]
[1617611192037,2.90695,2012.2,2012.1,44.39776093]
[1617611193237,2.90695,2012.2,2012.1,39.21019947]
[1617611195041,15.3068,2014.0,2012.1,46.1738925]
[1617611195245,13.3068,2014.0,2012.2,67.7793]
[1617611195442,13.3068,2014.0,2012.3,5.18713041]
[1617611195844,56.7792,2014.1,2012.6,5.18663599]
[1617611196042,56.7792,2014.1,2012.6,6.92773599]
[1617611196243,56.7792,2014.1,2013.6,2.90695]
[1617611196443,0.982,2014.6,2013.6,4.96615]
[1617611198344,2.90695,2013.7,2013.6,4.96615]
[1617611198746,2.90695,2013.7,2013.6,2.90695]
[1617611198946,2.90695,2013.7,2013.1,5.18982496]
[1617611199146,5.17165,2013.7,2013.1,5.18982496]
[1617611199650,5.17165,2013.7,2013.0,5.1897041]
[1617611200048,5.17165,2013.7,2012.9,5.18966512]
[1617611200248,68.7864,2014.2,2013.3,2.90695]
[1617611202153,32.0,2014.1,2013.0,5.18941699]
[1617611202351,2.90695,2013.1,2013.0,5.18941699]
[1617611202551,5.02385,2013.1,2012.9,2.90695]
[1617611202751,5.02385,2013.1,2012.8,5.19002832]
[1617611202951,5.02385,2013.1,2012.6,5.18997635]
[1617611203151,5.02385,2013.1,2013.0,5.20236008]
[1617611204656,5.02385,2013.1,2012.9,6.3585164]
[1617611205453,5.02385,2013.1,2013.0,5.20239569]
[1617611205855,79.2066,2013.0,2012.9,6.35838067]
[1617611206256,79.2066,2013.0,2012.8,5.2026764]
[1617611206856,81.2066,2013.0,2012.7,5.2030516]
[1617611207057,81.2066,2013.0,2012.6,5.20235238]
[1617611208258,32.0,2013.0,2012.6,5.20235238]
[1617611208461,78.747,2012.6,2012.4,5.20367474]
[1617611208661,84.3146,2012.6,2012.4,5.20367474]
[1617611208861,84.3146,2012.6,2012.2,5.20023804]
[1617611209263,3.5676,2012.6,2012.2,5.20023804]
[1617611209461,2.5608,2012.6,2012.3,5.20019374]
[1617611209662,2.90695,2012.7,2012.3,5.20019374]
[1617611209864,2.90695,2012.7,2012.5,5.19989135]
[1617611210262,81.3344,2013.1,2012.6,5.19939148]
[1617611210463,2.90695,2013.1,2013.0,2.90695]
[1617611210664,2.90695,2013.1,2013.0,4.87415]
[1617611210863,93.3881,2014.1,2013.0,4.87415]
[1617611211064,66.9748,2014.1,2013.0,10.07281231]
[1617611211265,66.9748,2014.1,2013.1,5.19847783]
[1617611212063,66.9748,2014.1,2013.0,8.10553171]
[1617611212464,2.90695,2013.1,2013.0,8.10553171]
[1617611212864,2.90695,2013.1,2013.0,5.19858171]
[1617611213063,5.65095,2013.1,2013.0,5.19858171]
[1617611213264,78.2933,2013.0,2012.7,5.19936328]
[1617611213664,78.2933,2013.0,2012.6,5.19950656]
[1617611214263,78.2933,2013.0,2012.5,5.19980068]
[1617611214465,2.90695,2012.6,2012.5,5.19980068]
[1617611214663,0.994,2013.8,2012.5,6.36579134]
[1617611214863,0.994,2013.8,2012.5,9.19089134]
[1617611215069,0.994,2013.8,2012.5,2.8251]
[1617611215363,0.994,2013.8,2013.1,5.20775516]
[1617611215563,0.994,2013.8,2013.1,7.64275516]
[1617611215764,0.994,2013.8,2013.2,5.20771405]
[1617611216163,0.994,2013.8,2013.1,7.64268168]
[1617611216364,2.90695,2013.2,2013.1,7.64268168]
[1617611216564,2.90695,2013.2,2013.1,2.435]
[1617611218668,2.90695,2013.2,2013.1,8.7995105]
[1617611219969,2.90695,2013.2,2013.1,2.435]
[1617611220769,2.90695,2013.2,2013.0,46.55586654]
[1617611221569,2.90695,2013.2,2013.1,7.52366157]
[1617611221770,2.90695,2013.2,2013.1,10.34046157]
[1617611224296,2.90695,2013.2,2013.1,7.52366157]
[1617611224682,2.90695,2013.2,2013.0,39.0319]
[1617611224886,4.68005,2013.2,2013.0,39.0319]
[1617611225083,4.68005,2013.2,2013.1,6.36697089]
[1617611225684,4.68005,2013.2,2013.0,45.39585795]
[1617611225886,2.90695,2013.2,2013.0,45.39585795]
[1617611226285,2.90695,2013.2,2013.1,6.36675296]
[1617611227685,2.90695,2013.2,2013.0,39.0319]
[1617611228487,2.90695,2013.2,2013.1,2.90695]
[1617611230087,59.7597,2014.0,2013.1,2.90695]
[1617611230490,59.7597,2014.0,2013.7,2.90695]
[1617611230688,2.0,2014.6,2013.7,5.33445]
[1617611231092,2.0,2014.8,2013.7,5.33445]
[1617611232590,2.90695,2013.8,2013.7,10.54230519]
[1617611233391,2.90695,2013.8,2013.7,5.33445]
[1617611233589,2.90695,2013.8,2013.7,2.4275]
[1617611233789,2.90695,2013.8,2013.7,5.20762653]
[1617611235592,2.90695,2013.8,2013.6,5.20785907]
[1617611237393,2.90695,2013.8,2013.5,5.20730661]
[1617611237794,2.0,2013.7,2013.6,5.20894346]
[1617611238196,2.0,2013.7,2013.3,5.20936122]
[1617611238396,32.0,2013.7,2013.1,5.20970591]
[1617611238593,2.90695,2013.2,2013.1,5.20970591]
[1617611238793,6.21745,2013.2,2013.1,4.27500591]
[1617611238993,6.21745,2013.2,2012.8,6.36732624]
[1617611239995,6.21745,2013.2,2012.7,6.36766448]
[1617611240595,2.90695,2012.8,2012.7,6.36766448]
[1617611240798,2.90695,2012.8,2012.5,6.36857601]
[1617611241396,2.90695,2012.8,2012.6,6.36848232]
[1617611241995,2.90695,2012.8,2012.6,8.80878232]
[1617611242195,2.90695,2012.8,2012.7,6.36799521]
[1617611242595,2.90695,2012.8,2012.7,2.90695]
[1617611246899,2.90695,2012.8,2012.5,7.52551979]
[1617611247100,5.16815,2012.8,2012.4,7.52561228]
[1617611247502,5.16815,2012.8,2012.7,6.36801195]
[1617611247701,5.16815,2012.8,2012.6,6.36842081]
[1617611248102,5.16815,2012.8,2011.9,61.8489]
[1617611248103,5.16815,2012.8,2012.5,6.36857803]
[1617611248508,5.16815,2012.8,2012.4,6.36641939]
[1617611248908,5.16815,2012.8,2012.6,5.20882304]
[1617611250609,5.16815,2012.8,2012.5,5.20912285]
[1617611251809,2.90695,2012.8,2012.5,5.20912285]
[1617611253109,32.90695,2012.8,2012.5,5.20912285]
[1617611253310,32.90695,2012.8,2012.3,5.20947448]
[1617611253311,75.1565,2012.5,2012.3,5.20947448]
[1617611253510,76.1551,2012.5,2012.3,5.20947448]
[1617611253711,76.1551,2012.5,2010.9,9.84011847]
[1617611253712,2.0,2012.4,2012.2,4.21482241]
[1617611253909,30.0,2012.3,2012.0,5.61148313]
[1617611254110,30.0,2012.3,2010.4,10.99851397]
[1617611254111,62.3513,2012.0,2011.5,6.36826243]
[1617611254311,63.3531,2012.0,2011.5,6.36826243]
[1617611254509,63.3531,2012.0,2010.9,2.32937107]
[1617611254510,63.3531,2012.0,2011.0,7.5263518]
[1617611254709,63.3531,2012.0,2011.2,2.90695]
[1617611256711,2.90695,2011.3,2011.2,2.90695]
[1617611257111,2.90695,2011.3,2011.2,3.08564181]
[1617611257713,0.9986,2012.5,2011.2,10.61188188]
[1617611257925,69.6839,2012.3,2011.2,10.61188188]
[1617611258116,69.6839,2012.3,2011.4,7.52599162]
[1617611258313,69.6839,2012.3,2011.4,9.24769162]
[1617611258523,69.6839,2012.3,2011.4,1.7217]
[1617611258715,69.6839,2012.3,2011.5,2.90695]
[1617611260617,2.90695,2011.6,2011.5,2.90695]
[1617611260817,2.90695,2011.6,2010.9,76.73294797]
[1617611260818,5.03845,2011.6,2010.9,69.2191]
[1617611261917,5.03845,2011.6,2010.6,7.51437532]
[1617611262117,60.1309,2011.0,2010.6,7.51437532]
[1617611262317,60.1309,2011.0,2010.4,4.32953916]
[1617611262318,62.9619,2011.0,2010.5,7.51448302]
[1617611262717,62.9619,2011.0,2010.4,2.0]
[1617611262718,62.9619,2011.0,2010.7,2.90695]
[1617611264519,2.831,2011.0,2010.8,6.36149369]
[1617611264719,2.90695,2010.9,2010.8,6.36149369]
[1617611264920,2.90695,2010.9,2010.6,5.20571102]
[1617611265322,2.90695,2010.9,2010.5,5.20607654]
[1617611265920,3.88925,2010.9,2010.5,5.20607654]
[1617611266522,2.90695,2010.9,2010.5,5.20607654]
[1617611266724,2.90695,2010.6,2010.5,5.20607654]
[1617611267123,0.9974,2011.5,2010.4,6.36293903]
[1617611267323,0.9974,2011.5,2010.4,82.39233903]
[1617611267523,0.9974,2011.5,2010.8,5.2056294]
[1617611267723,122.9025,2012.1,2010.8,5.2056294]
[1617611267924,92.9025,2012.1,2010.9,5.20527142]
[1617611268123,79.1108,2012.1,2010.9,7.87697142]
[1617611268328,79.1108,2012.1,2011.0,5.20487843]
[1617611268539,30.0,2012.9,2011.0,5.20487843]
[1617611268731,32.0,2012.9,2011.8,2.90695]
[1617611268936,32.0,2012.9,2011.8,5.39885]
[1617611269325,32.0,2012.9,2011.8,3.39885]
[1617611269529,32.0,2012.9,2011.8,2.4919]
[1617611269730,63.9922,2011.9,2011.8,2.4919]
[1617611269929,64.9713,2011.9,2011.3,5.20452724]
[1617611270128,64.9713,2011.9,2010.9,5.20513134]
[1617611270329,94.9713,2011.9,2010.9,5.20513134]
[1617611270530,2.0,2011.8,2010.9,5.20513134]
[1617611270733,2.90695,2011.0,2010.9,5.20513134]
[1617611270928,2.90695,2011.0,2010.7,5.20556941]
[1617611270929,5.52505,2011.0,2010.7,5.20556941]
[1617611271344,81.8971,2010.7,2010.6,5.20575675]
[1617611271946,81.8971,2010.7,2010.0,2.90695]
[1617611272149,42.8652,2010.7,2010.0,2.90695]
[1617611272748,2.90695,2010.1,2010.0,2.90695]
[1617611273535,42.8652,2010.7,2010.0,2.90695]
[1617611273735,0.9904,2011.4,2010.0,2.90695]
[1617611273935,2.0,2011.6,2010.0,5.04705]
[1617611274439,2.0,2011.8,2010.0,5.04705]
[1617611274837,2.0,2011.8,2010.4,2.90695]
[1617611275236,30.0,2011.7,2010.4,2.90695]
[1617611275440,2.0,2011.6,2010.4,2.90695]
[1617611276037,32.0,2011.6,2010.4,2.90695]
[1617611276738,2.90695,2010.5,2010.4,2.90695]
[1617611279139,2.90695,2010.5,2009.5,3.9325]
[1617611280743,75.8246,2009.9,2009.8,2.90695]
[1617611280945,78.3504,2009.9,2009.8,2.90695]
[1617611281343,78.3504,2009.9,2009.5,2.0]
[1617611282145,75.8246,2009.9,2009.5,2.0]
[1617611282543,78.6408,2009.9,2009.5,2.0]
[1617611282743,2.90695,2009.6,2009.5,2.0]
[1617611283143,5.43475,2009.6,2009.5,2.0]
[1617611283943,5.43475,2009.6,2009.5,0.9209]
[1617611284344,5.43475,2009.6,2008.2,5.18858998]
[1617611284543,81.1025,2008.5,2008.2,5.18858998]
[1617611284746,83.1532,2008.5,2008.3,2.90695]
[1617611286746,4.95765,2008.5,2008.3,2.90695]
[1617611286945,80.7127,2009.4,2008.3,2.90695]
[1617611287144,80.7127,2009.4,2008.3,4.79735]